fUST/lending_fUST_20251120
["ID","MTS","AMOUNT","RATE_DAILY","PERIOD"]
[394460405,1763597178227,1364.43,0.00040122,30]
[394460406,1763597178451,1364.43,0.00040122,30]
[394460407,1763597178691,1364.43,0.00040122,30]
[394460408,1763597178934,1364.43,0.00040122,30]
[394460409,1763597179166,1364.43,0.00040122,120]
[394460410,1763597179508,1364.43,0.00040122,120]
[394460411,1763597179677,1364.43,0.00040122,120]
[394460412,1763597179980,1364.43,0.00040122,120]
[394460413,1763597180239,1364.43,0.00040122,120]
[394460414,1763597180472,1364.43,0.00040122,120]
[394460415,1763597180699,1364.43,0.00040122,120]
[394460416,1763597180929,1364.43,0.00040122,120]
[394460417,1763597181161,1364.43,0.00040122,120]
[394460418,1763597181405,1364.43,0.00040122,120]
[394460419,1763597181636,1364.43,0.00040122,120]
[394460420,1763597181868,1364.43,0.00040122,120]
[394460421,1763597182100,1364.43,0.00040122,120]
[394460422,1763597182350,1364.51576543,0.00040122,120]
[394460423,1763597183435,-172.35629652,9.578e-05,2]
[394460424,1763597184886,-136.33404564,9.578e-05,2]
[394460425,1763597184912,-184.84963112,9.578e-05,2]
[394460426,1763597191799,-141.82292182,9.578e-05,2]
[394460427,1763597191837,-358.17707818,9.578e-05,2]
[394460428,1763597197141,-141.82292182,9.578e-05,2]
[394460429,1763597197166,-500.0,9.578e-05,2]
[394460430,1763597197199,-500.0,9.578e-05,2]
[394460431,1763597197226,-500.0,9.578e-05,2]
[394460432,1763597197251,-187.00644578,9.578e-05,2]
[394460433,1763597200685,-402.71452503,9.578e-05,2]
[394460434,1763597202811,-43.16610442,9.578e-05,2]
[394460435,1763597202838,-117.76892345,9.578e-05,2]
[394460436,1763597207265,-195.22463077,9.578e-05,2]
[394460437,1763597207294,-53.34604462,9.578e-05,2]
[394460438,1763597210062,-446.65395538,9.578e-05,2]
[394460439,1763597210095,-87.93659907,9.578e-05,2]
[394460440,1763597216653,-310.15941068,9.578e-05,2]
[394460441,1763597223117,-300.0,9.577e-05,2]
[394460442,1763597223151,-89.12784935,9.578e-05,2]
[394460443,1763597225894,-12.7761409,9.578e-05,2]
[394460444,1763597225920,-303.02619145,9.578e-05,2]
[394460445,1763597226220,632.04317708,0.00040122,30]
[394460446,1763597228146,530.96699711,0.00040122,30]
[394460447,1763597231596,-36.74542184,9.578e-05,2]
[394460448,1763597231627,-278.34895906,9.578e-05,2]
[394460449,1763597235002,220.60598397,0.00040122,30]
[394460450,1763597238738,-221.65104094,9.578e-05,2]
[394460451,1763597238762,-76.5775572,9.578e-05,2]
[394460452,1763597240426,-297.66261638,9.578e-05,2]
[394460456,1763597246854,-125.75982642,9.578e-05,2]
[394460457,1763597246879,-433.2654829,9.578e-05,2]
[394460458,1763597249081,-66.7345171,9.578e-05,2]
[394460459,1763597249104,-350.52770076,9.578e-05,2]
[394460461,1763597253234,500.0,0.00040122,30]
[394460462,1763597253474,500.0,0.00040122,30]
[394460463,1763597253730,500.0,0.00040122,30]
[394460464,1763597253760,-149.47229924,9.578e-05,2]
[394460465,1763597253792,-112.00067909,9.578e-05,2]
[394460466,1763597254003,500.0,0.00040122,30]
[394460467,1763597254274,500.0,0.00040122,30]
[394460468,1763597254505,500.0,0.00040122,30]
[394460469,1763597254788,429.82145032,9.144e-05,2]
[394460470,1763597254836,500.0,0.00040122,30]
[394460471,1763597255092,500.0,0.00040122,30]
[394460472,1763597255333,500.0,0.00040122,30]
[394460473,1763597255578,581.14536928,0.00040122,30]
[394460474,1763597257197,-296.66283102,9.578e-05,2]
[394460475,1763597257402,773.67861058,9.144e-05,2]
[394460476,1763597262440,-91.33648989,9.578e-05,2]
[394460477,1763597262474,-67.28507426,9.578e-05,2]
[394460478,1763597266085,-217.26221786,9.578e-05,2]
[394460479,1763597268126,-441.44469649,9.577e-05,2]
[394460480,1763597271620,-356.79485054,9.577e-05,2]
[394460481,1763597274113,-206.07125464,9.577e-05,2]
[394460482,1763597278671,-195.68919833,9.577e-05,2]
[394460483,1763597278703,-178.95242674,9.578e-05,2]
[394460484,1763597280275,-36.50028114,9.578e-05,2]
[394460485,1763597280314,-135.98902997,9.578e-05,2]
[394460486,1763597281944,-315.57888743,9.578e-05,2]
[394460487,1763597286133,-300.0,9.577e-05,2]
[394460488,1763597286168,-48.4320826,9.578e-05,2]
[394460489,1763597286200,-36.6607483,9.578e-05,2]
[394460490,1763597291110,-444.7379511,9.578e-05,2]
[394460491,1763597293087,500.0,0.00040122,30]
[394460492,1763597293306,559.85832468,0.00040122,30]
[394460493,1763597295076,-18.6013006,9.578e-05,2]
[394460494,1763597295110,-387.49182943,9.578e-05,2]
[394460495,1763597295673,1145.40966943,9.482e-05,2]
[394460496,1763597297980,-112.50817057,9.578e-05,2]
[394460497,1763597298010,-113.00651779,9.578e-05,2]
[394460498,1763597302190,-300.07451463,9.578e-05,2]
[394460499,1763597303857,-86.91896758,9.578e-05,2]
[394460500,1763597303896,-124.27637568,9.578e-05,2]
[394460501,1763597305703,-193.60993279,9.578e-05,2]
[394460502,1763597306818,510.1397294,0.00040122,20]
[394460503,1763597310351,-182.11369153,9.578e-05,2]
[394460504,1763597310381,-64.53566697,9.578e-05,2]
[394460505,1763597311283,7651.10026967,9.482e-05,2]
[394460506,1763597311308,10000.01,9.482e-05,2]
[394460507,1763597312137,500.0,0.00040122,30]
[394460508,1763597312366,500.0,0.00040122,30]
[394460509,1763597312459,-355.72437133,9.482e-05,2]
[394460510,1763597312591,500.0,0.00040122,30]
[394460511,1763597312965,500.0,0.00040122,30]
[394460512,1763597313204,500.0,0.00040122,30]
[394460513,1763597313453,500.0,0.00040122,30]
[394460514,1763597313705,500.0,0.00040122,30]
[394460515,1763597313936,500.0,0.00040122,30]
[394460516,1763597313964,-414.16303167,9.482e-05,2]
[394460517,1763597314206,648.4827388,0.00040122,30]
[394460518,1763597316930,500.0,0.00040122,30]
[394460519,1763597317010,164.38872251,0.00040122,30]
[394460520,1763597317277,575.87100963,0.00040122,30]
[394460521,1763597320753,-320.45531104,9.387e-05,2]
[394460522,1763597326741,-183.716,9.387e-05,2]
[394460523,1763597328272,-199.27891845,9.293e-05,2]
[394460524,1763597330112,424.04955826,0.00040122,30]
[394460525,1763597335673,-68.41688019,9.293e-05,2]
[394460526,1763597335700,-203.0874338,9.387e-05,2]
[394460527,1763597337394,-64.60836484,9.387e-05,2]
[394460528,1763597337417,-500.0395443,9.482e-05,2]
[394460529,1763597345235,-221.49869657,9.481e-05,2]
[394460530,1763597352752,-78.50130343,9.481e-05,2]
[394460531,1763597352775,-184.24335779,9.482e-05,2]
[394460532,1763597358269,-259.47912152,9.482e-05,2]
[394460533,1763597360436,-335.04494031,9.482e-05,2]
[394460534,1763597368897,-216.1187004,8.657e-05,2]
[394460535,1763597368925,-12.9858911,9.482e-05,2]
[394460536,1763597371240,-169.76668593,9.482e-05,2]
[394460537,1763597375536,-608.98437334,9.482e-05,2]
[394460538,1763597379505,-193.89830174,9.482e-05,2]
[394460539,1763597379664,500.0,0.00040122,30]
[394460540,1763597382222,-199.85726801,9.482e-05,2]
[394460541,1763597386794,294.19555314,0.00040122,30]
[394460542,1763597390417,-176.0016093,9.482e-05,2]
[394460543,1763597392962,-414.13812032,9.482e-05,2]
[394460544,1763597398052,-500.0,9.482e-05,2]
[394460545,1763597398450,642.44308286,0.00040122,30]
[394460546,1763597401058,-194.47980349,9.482e-05,2]
[394460547,1763597403388,2000.0,0.00013699,7]
[394460548,1763597404985,500.0,0.00040122,30]
[394460549,1763597405225,227.7409333,0.00040122,30]
[394460550,1763597406805,-166.908366,9.481e-05,2]
[394460551,1763597407045,500.0,0.00040122,30]
[394460552,1763597407271,500.0,0.00040122,30]
[394460553,1763597407594,500.0,0.00040122,30]
[394460554,1763597407819,500.0,0.00040122,30]
[394460555,1763597408087,500.0,0.00040122,30]
[394460556,1763597408434,500.0,0.00040122,30]
[394460557,1763597408673,500.0,0.00040122,30]
[394460558,1763597408914,493.05,0.00040122,30]
[394460559,1763597409608,-133.091634,9.481e-05,2]
[394460560,1763597409630,-186.60622081,9.481e-05,2]
[394460561,1763597416027,-119.39377919,9.481e-05,2]
[394460562,1763597416051,-180.94481564,9.482e-05,2]
[394460563,1763597418634,-166.11388614,9.482e-05,2]
[394460564,1763597420993,500.0,0.00040122,30]
[394460565,1763597421231,500.0,0.00040122,30]
[394460566,1763597421467,500.0,0.00040122,30]
[394460567,1763597422066,500.0,0.00040122,30]
[394460568,1763597422316,500.0,0.00040122,30]
[394460569,1763597422563,500.0,0.00040122,30]
[394460570,1763597422822,500.0,0.00040122,30]
[394460571,1763597423079,500.0,0.00040122,30]
[394460572,1763597423329,500.0,0.00040122,30]
[394460573,1763597423577,500.0,0.00040122,30]
[394460574,1763597423844,500.0,0.00040122,120]
[394460575,1763597424104,500.0,0.00040122,120]
[394460576,1763597424371,350.48787221,0.00040122,120]
[394460577,1763597424628,-293.55237478,9.482e-05,2]
[394460578,1763597427823,500.0,0.00040122,30]
[394460579,1763597428070,500.0,0.00040122,30]
[394460580,1763597428323,500.0,0.00040122,30]
[394460581,1763597428556,500.0,0.00040122,30]
[394460582,1763597428836,500.0,0.00040122,30]
[394460583,1763597429068,500.0,0.00040122,30]
[394460584,1763597429398,500.0,0.00040122,30]
[394460585,1763597429619,575.92316918,0.00040122,30]
[394460586,1763597431063,-156.24735338,9.482e-05,2]
[394460684,1763597435477,-436.58281601,9.482e-05,2]
[394460714,1763597438418,-500.0,9.481e-05,2]
[394460715,1763597438428,-500.0,9.481e-05,2]
[394460716,1763597438438,-500.0,9.481e-05,2]
[394460717,1763597438447,-500.0,9.481e-05,2]
[394460718,1763597438457,-500.0,9.481e-05,2]
[394460720,1763597438467,-500.0,9.481e-05,2]
[394460721,1763597438477,-533.97716133,9.481e-05,2]
[394460722,1763597438487,-500.0,9.481e-05,2]
[394460723,1763597438495,-500.0,9.481e-05,2]
[394460724,1763597438505,-500.0,9.481e-05,2]
[394460725,1763597438514,-500.0,9.481e-05,2]
[394460726,1763597438523,-500.0,9.481e-05,2]
[394460727,1763597438532,-500.0,9.481e-05,2]
[394460728,1763597438541,-500.0,9.481e-05,2]
[394460729,1763597438551,-500.0,9.481e-05,2]
[394460730,1763597438560,-500.0,9.481e-05,2]
[394460731,1763597438569,-500.0,9.481e-05,2]
[394460732,1763597438579,-500.0,9.481e-05,2]
[394460733,1763597438588,-500.0,9.481e-05,2]
[394460734,1763597438598,-500.0,9.481e-05,2]
[394460735,1763597438607,-200.0,9.481e-05,2]
[394460736,1763597438617,-500.0,9.481e-05,2]
[394460737,1763597438626,-500.0,9.481e-05,2]
[394460738,1763597438636,-500.0,9.481e-05,2]
[394460739,1763597438645,-500.0,9.481e-05,2]
[394460740,1763597438654,-500.0,9.481e-05,2]
[394460741,1763597438663,-500.0,9.481e-05,2]
[394460742,1763597438673,-500.0,9.481e-05,2]
[394460743,1763597438682,-45.4878247,9.481e-05,2]
[394460752,1763597440480,-180.28029699,9.481e-05,2]
[394460757,1763597442364,-347.11585858,9.481e-05,2]
[394460761,1763597444438,-36.80041557,9.481e-05,2]
[394460762,1763597444471,-500.0,9.481e-05,2]
[394460763,1763597444502,-500.0,9.481e-05,2]
[394460764,1763597444533,-11.45000328,9.481e-05,2]
[394460768,1763597445928,-203.20326307,9.481e-05,2]
[394460770,1763597446087,-207.03683551,9.481e-05,2]
[394460778,1763597448129,-380.60321431,9.144e-05,2]
[394460779,1763597449701,-56.54372354,9.144e-05,2]
[394460780,1763597449732,-78.30989814,9.481e-05,2]
[394460781,1763597449762,-268.99045789,9.481e-05,2]
[394460782,1763597454717,500.0,0.00040122,30]
[394460783,1763597454966,500.0,0.00040122,30]
[394460784,1763597455207,500.0,0.00040122,30]
[394460785,1763597455469,500.0,0.00040122,30]
[394460786,1763597455721,500.0,0.00040122,30]
[394460787,1763597455950,-231.00954211,9.481e-05,2]
[394460788,1763597455976,-61.72863184,9.482e-05,2]
[394460789,1763597456025,500.0,0.00040122,30]
[394460790,1763597456342,500.0,0.00040122,30]
[394460791,1763597456508,500.0,0.00040122,30]
[394460792,1763597457129,500.0,0.00040122,30]
[394460793,1763597457380,500.0,0.00040122,30]
[394460794,1763597457684,500.0,0.00040122,120]
[394460795,1763597457932,500.0,0.00040122,120]
[394460796,1763597458182,500.0,0.00040122,120]
[394460797,1763597458443,500.0,0.00040122,120]
[394460798,1763597458686,500.0,0.00040122,120]
[394460799,1763597458952,500.0,0.00040122,120]
[394460800,1763597459241,500.0,0.00040122,120]
[394460801,1763597459472,500.0,0.00040122,120]
[394460802,1763597459695,500.0,0.00040122,120]
[394460803,1763597459929,500.0,0.00040122,120]
[394460804,1763597460164,566.75974442,0.00040122,120]
[394460805,1763597467301,500.0,0.00040122,30]
[394460806,1763597467551,500.0,0.00040122,30]
[394460807,1763597467785,500.0,0.00040122,30]
[394460808,1763597468034,500.0,0.00040122,30]
[394460809,1763597468269,500.0,0.00040122,30]
[394460810,1763597468509,500.0,0.00040122,30]
[394460811,1763597468760,206.59409581,0.00040122,30]
[394460812,1763597477223,500.0,0.00040122,30]
[394460813,1763597477559,500.0,0.00040122,30]
[394460814,1763597477811,500.0,0.00040122,30]
[394460815,1763597478042,500.0,0.00040122,30]
[394460816,1763597478292,500.0,0.00040122,30]
[394460817,1763597478570,500.0,0.00040122,30]
[394460818,1763597478933,500.0,0.00040122,30]
[394460819,1763597479120,500.0,0.00040122,30]
[394460820,1763597479352,383.84468486,0.00040122,30]
[394460821,1763597479634,500.0,0.00040122,30]
[394460822,1763597479894,169.72191356,0.00040122,30]
[394460823,1763597486948,-279.59997854,9.473e-05,2]
[394460824,1763597490227,-168.34857367,9.473e-05,2]
[394460825,1763597494687,-292.73817395,9.473e-05,2]
[394460826,1763597496951,-164.08738128,9.473e-05,2]
[394460827,1763597499068,-166.908366,9.473e-05,2]
[394460828,1763597503433,-225.60230547,9.473e-05,2]
[394460829,1763597504917,-180.28029695,9.473e-05,2]
[394460830,1763597507587,-333.18102932,9.378e-05,2]
[394460831,1763597510445,-581.19573489,9.378e-05,2]
[394460832,1763597511901,-243.83427879,9.378e-05,2]
[394460833,1763597514287,-368.04522985,9.378e-05,2]
[394460834,1763597521347,-318.83839968,9.378e-05,2]
[394460835,1763597522499,500.0,0.00040122,30]
[394460836,1763597522761,500.0,0.00040122,30]
[394460837,1763597523027,500.0,0.00040122,30]
[394460838,1763597523270,500.0,0.00040122,30]
[394460839,1763597523527,193.64,0.00040122,30]
[394460840,1763597529021,-293.57971951,9.378e-05,2]
[394460841,1763597535525,-552.80376963,9.284e-05,2]
[394460842,1763597537056,-176.31038961,9.284e-05,2]
[394460843,1763597542381,2295.20990115,9.191e-05,2]
[394460844,1763597543240,-219.89751985,9.284e-05,2]
[394460845,1763597546878,-155.10605728,9.284e-05,2]
[394460846,1763597551061,-407.55504621,9.284e-05,2]
[394460847,1763597554536,-166.908366,9.284e-05,2]
[394460848,1763597562396,-500.01356296,9.284e-05,2]
[394460849,1763597564750,845.72934885,9.191e-05,2]
[394460850,1763597566728,-192.09411889,9.284e-05,2]
[394460851,1763597568285,-307.90588111,9.284e-05,2]
[394460852,1763597570544,500.0,0.00040122,30]
[394460853,1763597570774,172.81850162,0.00040122,30]
[394460854,1763597574965,-345.72934885,9.284e-05,2]
[394460855,1763597574987,-42.55815931,9.321e-05,2]
[394460856,1763597577675,-169.91928724,9.321e-05,2]
[394460857,1763597577697,-53.77279968,9.321e-05,2]
[394460858,1763597579748,345.72934885,9.191e-05,2]
[394460859,1763597584132,-168.42994544,9.321e-05,2]
[394460860,1763597587778,626.85713129,9.227e-05,2]
[394460861,1763597591261,-503.98272912,9.321e-05,2]
[394460862,1763597593165,-122.87440217,9.321e-05,2]
[394460863,1763597593189,-136.12556961,9.378e-05,2]
[394460864,1763597595414,500.0,0.00040122,30]
[394460865,1763597595672,500.0,0.00040122,30]
[394460866,1763597595928,500.0,0.00040122,30]
[394460867,1763597596166,500.0,0.00040122,30]
[394460868,1763597596452,500.0,0.00040122,30]
[394460869,1763597596721,500.0,0.00040122,30]
[394460870,1763597596998,500.0,0.00040122,30]
[394460871,1763597597267,500.0,0.00040122,30]
[394460872,1763597597533,500.0,0.00040122,30]
[394460873,1763597597791,500.0,0.00040122,30]
[394460874,1763597598045,500.0,0.00040122,120]
[394460875,1763597598157,500.0,0.00040122,30]
[394460876,1763597598376,500.0,0.00040122,120]
[394460877,1763597598483,500.0,0.00040122,30]
[394460878,1763597598530,500.0,0.00040122,120]
[394460879,1763597598725,500.0,0.00040122,30]
[394460880,1763597598790,500.0,0.00040122,120]
[394460881,1763597599083,-194.0172991,9.378e-05,2]
[394460882,1763597599138,500.0,0.00040122,30]
[394460883,1763597599222,500.0,0.00040122,120]
[394460884,1763597600655,-311.16080473,9.378e-05,2]
[394460885,1763597608641,-169.45799399,9.284e-05,2]
[394460886,1763597610457,1154.27065115,9.191e-05,2]
[394460887,1763597614628,-373.65466446,9.284e-05,2]
[394460888,1763597616421,-532.56953448,9.284e-05,2]
[394460889,1763597624856,-78.58845822,9.284e-05,2]
[394460890,1763597624880,-221.41154178,9.378e-05,2]
[394460891,1763597631722,-224.80113591,9.378e-05,2]
[394460892,1763597633339,-251.47468717,9.284e-05,2]
[394460893,1763597639786,-364.89175421,9.284e-05,2]
[394460894,1763597642154,-231.26706152,9.284e-05,2]
[394460895,1763597647757,2216.84977022,9.191e-05,2]
[394460896,1763597670031,2261.64234929,9.191e-05,2]
[394460898,1763597706873,4902.8464739,9.191e-05,2]
[394460900,1763597729427,4902.8464739,9.191e-05,2]
[394460901,1763597751948,4902.8464739,9.191e-05,2]
[394460902,1763597867217,-300.0,9.098e-05,2]
[394460903,1763597867248,-300.0,9.19e-05,2]
[394460904,1763597867279,-3897.1635261,9.191e-05,2]
[394460905,1763597873141,-1200.0,9.19e-05,2]
[394460906,1763597873173,-1005.6829478,9.191e-05,2]
[394460907,1763597876154,-1200.0,9.098e-05,2]
[394460908,1763597929821,-3974.13564072,9.008e-05,2]
[394460909,1763597929867,-1687.87563055,9.008e-05,2]
[394460910,1763597930029,-363.86308801,9.008e-05,2]
[394460911,1763597930061,-3246.4094647,9.099e-05,2]
[394460912,1763597930104,-2779.46489458,9.099e-05,2]
[394460913,1763597930151,-500.0,9.19e-05,2]
[394460914,1763597930182,-388.28750816,9.19e-05,2]
[394460915,1763597930216,-500.0,9.19e-05,2]
[394460916,1763597930256,-732.71238514,9.19e-05,2]
[394460917,1763597930296,-732.71238514,9.19e-05,2]
[394460918,1763597930331,-253.34547999,9.19e-05,2]
[394460919,1763597930371,-732.71238514,9.19e-05,2]
[394460920,1763597930410,-732.71238514,9.19e-05,2]
[394460921,1763597930455,-122.33255744,9.19e-05,2]
[394460922,1763597930561,-610.3798277,9.19e-05,2]
[394460923,1763597930599,-732.71238514,9.19e-05,2]
[394460924,1763597930636,-732.71238514,9.19e-05,2]
[394460925,1763597930672,-732.71238514,9.19e-05,2]
[394460926,1763597930709,-732.71238514,9.19e-05,2]
[394460927,1763597930745,-732.71238514,9.19e-05,2]
[394460928,1763597930947,-719.41410806,9.19e-05,2]
[394460929,1763597931118,-13.29827708,9.19e-05,2]
[394460930,1763597931157,-732.71238514,9.19e-05,2]
[394460931,1763597931196,-732.71238514,9.19e-05,2]
[394460932,1763597931236,-732.71238514,9.19e-05,2]
[394460933,1763597931275,-732.71238514,9.19e-05,2]
[394460934,1763597931315,-732.71238514,9.19e-05,2]
[394460935,1763597931355,-732.71238514,9.19e-05,2]
[394460936,1763597931398,-448.15243902,9.19e-05,2]
[394460937,1763597931865,-175.52566576,9.19e-05,2]
[394460938,1763597931908,-109.03428036,9.19e-05,2]
[394460939,1763597931917,-623.67810478,9.19e-05,2]
[394460940,1763597935268,553.84261829,0.00040121,30]
[394460941,1763597935749,-109.03428036,9.19e-05,2]
[394460942,1763597935786,-732.71238514,9.19e-05,2]
[394460943,1763597935824,-732.71238514,9.19e-05,2]
[394460944,1763597935864,-732.71238514,9.19e-05,2]
[394460945,1763597935902,-732.71238514,9.19e-05,2]
[394460946,1763597935941,-732.71238514,9.19e-05,2]
[394460947,1763597935980,-732.71238514,9.19e-05,2]
[394460948,1763597936019,-256.68043246,9.19e-05,2]
[394460949,1763597936126,-476.03195268,9.19e-05,2]
[394460950,1763597936159,-500.0,9.19e-05,2]
[394460951,1763597936192,-500.0,9.19e-05,2]
[394460952,1763597936225,-500.0,9.19e-05,2]
[394460953,1763597936258,-500.0,9.19e-05,2]
[394460954,1763597936291,-500.0,9.19e-05,2]
[394460955,1763597936473,-500.0,9.191e-05,2]
[394460956,1763597936490,-4047.94609464,9.191e-05,2]
[394460957,1763597938815,500.0,0.00040121,30]
[394460958,1763597939064,500.0,0.00040121,30]
[394460959,1763597939646,500.0,0.00040121,30]
[394460960,1763597939917,500.0,0.00040121,30]
[394460961,1763597940163,500.0,0.00040121,30]
[394460962,1763597940428,500.0,0.00040121,30]
[394460963,1763597940683,500.0,0.00040121,30]
[394460964,1763597940922,500.0,0.00040121,30]
[394460965,1763597941191,500.0,0.00040121,30]
[394460966,1763597941472,500.0,0.00040121,30]
[394460967,1763597941814,500.0,0.00040121,120]
[394460968,1763597941987,500.0,0.00040121,120]
[394460969,1763597942275,500.0,0.00040121,120]
[394460970,1763597943873,286.40947514,0.00040121,120]
[394460971,1763597960068,-300.0,9.098e-05,2]
[394460972,1763597960102,-226.55714265,9.099e-05,2]
[394460973,1763597960162,-8946.8957147,9.099e-05,2]
[394460974,1763597960282,-3779.02299435,9.099e-05,2]
[394460975,1763597960308,-2441.9640113,9.099e-05,2]
[394460976,1763597964698,10000.01,9.098e-05,2]
[394460977,1763597964722,6646.73295125,9.098e-05,2]
[394460978,1763597987215,10000.01,9.098e-05,2]
[394460979,1763597987244,6646.73295125,9.098e-05,2]
[394460980,1763598052917,-450.47060809,8.855e-05,2]
[394460981,1763598052951,-667.4093092,9.059e-05,2]
[394460982,1763598074595,667.4093092,9.059e-05,2]
[394460983,1763598097226,667.4093092,9.059e-05,2]
[394460984,1763598120578,667.4093092,9.059e-05,2]
[394460985,1763598142923,667.4093092,9.059e-05,2]
[394460986,1763598165278,204.64267207,9.059e-05,2]
[394460987,1763598173247,997.42863385,0.00040121,120]
[394460989,1763598222957,4889.97025655,8.499e-05,2]
[394460990,1763598222991,10000.01,8.499e-05,2]
[394460991,1763598223021,10000.01,8.499e-05,2]
[394460992,1763598223054,10000.01,8.499e-05,2]
[394461025,1763598559100,-316.18086555,8.414e-05,2]
[394461026,1763598559120,-316.18086555,8.499e-05,2]
[394461027,1763598559140,-222.02599979,8.824e-05,2]
[394461028,1763598559160,-1925.74428471,8.855e-05,2]
[394461029,1763598559180,-149.40059719,9.063e-05,2]
[394461067,1763598633666,-256.47524472,8.855e-05,2]
[394461068,1763598633675,-1024.87507789,8.855e-05,2]
[394461069,1763598633684,-432.7885935,8.855e-05,2]
[394461070,1763598633694,-203.78771266,8.882e-05,2]
[394461071,1763598633703,-203.78771266,8.972e-05,2]
[394461072,1763598633713,-217.5854798,9.017e-05,2]
[394461073,1763598633722,-203.78771266,9.063e-05,2]
[394461074,1763598633732,-667.4093092,9.15e-05,2]
[394461075,1763598633745,-999.87806638,9.184e-05,2]
[394461076,1763598633756,-300.0,9.184e-05,2]
[394461077,1763598633767,-657.0,9.184e-05,2]
[394461078,1763598633776,-244.91445481,9.184e-05,2]
[394461079,1763598633785,-1200.0,9.185e-05,2]
[394461080,1763598633795,-500.0,9.185e-05,2]
[394461081,1763598633804,-231.06322795,9.185e-05,2]
[394461082,1763598633813,-500.0,9.185e-05,2]
[394461083,1763598633822,-500.0,9.185e-05,2]
[394461084,1763598633831,-500.0,9.185e-05,2]
[394461085,1763598633840,-500.0,9.185e-05,2]
[394461086,1763598633850,-500.0,9.185e-05,2]
[394461087,1763598633859,-500.0,9.185e-05,2]
[394461088,1763598633869,-500.0,9.185e-05,2]
[394461089,1763598633879,-500.0,9.185e-05,2]
[394461090,1763598633889,-500.0,9.185e-05,2]
[394461091,1763598633898,-500.0,9.185e-05,2]
[394461092,1763598633909,-500.0,9.185e-05,2]
[394461093,1763598633919,-500.0,9.185e-05,2]
[394461094,1763598633929,-452.20267869,9.185e-05,2]
[394461095,1763598633938,-500.0,9.185e-05,2]
[394461096,1763598633947,-500.0,9.185e-05,2]
[394461097,1763598633956,-500.0,9.185e-05,2]
[394461098,1763598633967,-500.0,9.185e-05,2]
[394461099,1763598633976,-500.0,9.185e-05,2]
[394461100,1763598633985,-500.0,9.185e-05,2]
[394461101,1763598633995,-500.0,9.185e-05,2]
[394461102,1763598634004,-500.0,9.185e-05,2]
[394461103,1763598634013,-150.2399176,9.185e-05,2]
[394461105,1763598638513,-488.74892948,8.855e-05,2]
[394461106,1763598638522,-1953.04072222,8.855e-05,2]
[394461107,1763598638531,-4065.90633536,9.191e-05,2]
[394461108,1763598638542,-3291.06443375,9.191e-05,2]
[394461124,1763598641202,-4e-08,9.191e-05,2]
[394461302,1763598681902,210.9223755,0.00013696,7]
[394461306,1763598789640,165.666069,8.156e-05,2]
[394461307,1763598789835,165.666069,8.156e-05,61]
[394461308,1763598790053,165.666069,8.156e-05,120]
[394461309,1763598874461,-201.58782815,8.528e-05,2]
[394461310,1763598907423,684.44432563,0.00040119,30]
[394461311,1763598915392,250.0,0.00040119,120]
[394461312,1763598916045,250.0,0.00040119,120]
[394461313,1763598916683,250.0,0.00040119,120]
[394461314,1763598917321,250.0,0.00040119,120]
[394461315,1763598917935,250.0,0.00040119,120]
[394461316,1763598918533,250.0,0.00040119,120]
[394461317,1763598919821,250.0,0.00040119,120]
[394461318,1763598919860,500.0,0.00040119,120]
[394461319,1763598920455,500.0,0.00040119,120]
[394461320,1763598920491,250.0,0.00040119,120]
[394461321,1763598921088,500.0,0.00040119,120]
[394461322,1763598921125,250.0,0.00040119,120]
[394461323,1763598921711,250.0,0.00040119,120]
[394461324,1763598921747,500.0,0.00040119,120]
[394461325,1763598922324,500.0,0.00040119,120]
[394461326,1763598922498,250.0,0.00040119,120]
[394461327,1763598922971,500.0,0.00040119,120]
[394461328,1763598929046,635.73895774,8.434e-05,2]
[394461330,1763599003757,3000.0,0.00040119,20]